fUSD/lending_fUSD_20240412
["ID","MTS","AMOUNT","RATE_DAILY","PERIOD"]
[322358356,1712963460154,-786.06,0.00037599,2]
[322358357,1712963460163,-157.041307,0.00037698,39]
[322358358,1712963460173,-1868.94,0.000377,3]
[322358359,1712963460182,-1868.94,0.000377,3]
[322358360,1712963460191,-1868.94,0.000377,3]
[322358361,1712963460200,-1868.94,0.000377,3]
[322358362,1712963460210,-1868.94,0.000377,3]
[322358363,1712963460219,-1868.94,0.000377,3]
[322358364,1712963460229,-1868.94,0.000377,3]
[322358365,1712963460238,-1868.94,0.000377,3]
[322358366,1712963460248,-1868.94,0.000377,3]
[322358367,1712963460257,-1868.94,0.000377,3]
[322358368,1712963460266,-1868.94,0.000377,3]
[322358369,1712963460276,-1868.94,0.000377,3]
[322358370,1712963460285,-1868.94,0.000377,3]
[322358371,1712963460295,-1868.94,0.000377,3]
[322358372,1712963460304,-1868.94,0.000377,3]
[322358373,1712963460314,-1868.94,0.000377,3]
[322358374,1712963460324,-1868.94,0.000377,3]
[322358375,1712963460333,-1868.94,0.000377,3]
[322358376,1712963460343,-1868.94,0.000377,3]
[322358377,1712963460352,-1868.94,0.000377,3]
[322358378,1712963460362,-154.33,0.000377,3]
[322358379,1712963460371,-154.33,0.000377,3]
[322358380,1712963460381,-154.33,0.000377,3]
[322358381,1712963460390,-154.33,0.000377,3]
[322358382,1712963460401,-154.33,0.000377,3]
[322358383,1712963460411,-154.33,0.000377,3]
[322358384,1712963460420,-154.33,0.000377,3]
[322358385,1712963460430,-154.33,0.000377,3]
[322358386,1712963460439,-156.33022819,0.00037718,7]
[322358387,1712963460452,-521.0,0.00037753,7]
[322358388,1712963460462,-167.58516634,0.00037761,7]
[322358389,1712963460471,-173.041307,0.00037798,37]
[322358390,1712963460480,-150.0,0.00037832,120]
[322358391,1712963460490,-153.90252395,0.00037969,7]
[322358392,1712963460500,-602.22,0.00038027,15]
[322358393,1712963460509,-152.0,0.00038048,3]
[322358394,1712963460518,-167.58516634,0.00038048,7]
[322358395,1712963460528,-156.33022819,0.00038124,7]
[322358396,1712963460538,-214.84179786,0.00038144,7]
[322358397,1712963460547,-153.90252395,0.00038188,7]
[322358398,1712963460557,-173.041307,0.00038198,43]
[322358399,1712963460567,-715.54,0.000382,2]
[322358400,1712963460577,-348.74550605,0.00038276,7]
[322358401,1712963460586,-157.041307,0.00038298,44]
[322358402,1712963460596,-282.19765822,0.00038323,7]
[322358403,1712963460605,-152.47619676,0.00038341,7]
[322358404,1712963460615,-154.340065,0.00038388,7]
[322358405,1712963460626,-157.041307,0.00038398,40]
[322358406,1712963460635,-413.84442539,0.0003842,30]
[322358407,1712963460644,-173.041307,0.00038498,44]
[322358408,1712963460657,-348.74550605,0.00038519,7]
[322358409,1712963460666,-282.19765822,0.00038526,7]
[322358410,1712963460676,-1423.857659,0.000386,19]
[322358411,1712963460686,-156.07725532,0.00038611,7]
[322358412,1712963460695,-6169.62810235,0.00038662,30]
[322358413,1712963460704,-157.041307,0.00038698,40]
[322358414,1712963460714,-1195.60922235,0.00038765,2]
[322358415,1712963460723,-173.041307,0.00038798,38]
[322358416,1712963460733,-156.33022819,0.00038837,7]
[322358417,1712963460743,-167.58516634,0.00038898,7]
[322358418,1712963460752,-4072.29619757,0.000389,15]
[322358419,1712963460762,-214.0,0.00038918,2]
[322358420,1712963460771,-354.0,0.00038918,2]
[322358421,1712963460780,-166.44,0.00038933,2]
[322358422,1712963460790,-244.82,0.00038933,2]
[322358423,1712963460799,-122919.92607118,0.0003897,2]
[322358424,1712963460808,-4116.105926,0.0003897,14]
[322358425,1712963460818,-209.845964,0.0003897,14]
[322358426,1712963460827,-4116.105926,0.0003897,14]
[322358427,1712963460837,-209.845964,0.0003897,14]
[322358428,1712963460846,-260.469364,0.0003897,14]
[322358429,1712963460856,-151.0,0.0003897,14]
[322358430,1712963460866,-260.469364,0.0003897,14]
[322358431,1712963460875,-202.531784,0.0003897,2]
[322358432,1712963460885,-709.622586,0.0003897,14]
[322358433,1712963460894,-202.531784,0.0003897,2]
[322358434,1712963460905,-709.622586,0.0003897,14]
[322358435,1712963460915,-151.0,0.0003897,14]
[322358436,1712963460925,-151.0,0.0003897,14]
[322358437,1712963460934,-268.058529,0.0003897,14]
[322358438,1712963460944,-166.115044,0.0003897,14]
[322358439,1712963460953,-268.058529,0.0003897,14]
[322358440,1712963460963,-521.0,0.00038986,7]
[322358441,1712963460973,-47748.46859516,0.00039,30]
[322358442,1712963460982,-155.0,0.00039,4]
[322358443,1712963460993,-1022.306478,0.00039,30]
[322358444,1712963461002,-903.21839451,0.00039,4]
[322358445,1712963461012,-1150.0,0.00039,3]
[322358446,1712963461021,-151.26482744,0.00039028,3]
[322358447,1712963461031,-348.74550605,0.00039042,7]
[322358448,1712963461041,-173.041307,0.00039198,44]
[322358449,1712963461051,-10000.0,0.0003929,30]
[322358450,1712963461060,-151.0,0.0003929,14]
[322358451,1712963461070,-151.0,0.0003929,14]
[322358452,1712963461079,-151.0,0.0003929,14]
[322358453,1712963461088,-151.0,0.0003929,14]
[322358454,1712963461098,-330.932232,0.0003929,14]
[322358455,1712963461107,-330.932232,0.0003929,14]
[322358456,1712963461116,-153.988258,0.0003929,14]
[322358457,1712963461125,-153.988258,0.0003929,14]
[322358458,1712963461135,-151.0,0.0003929,7]
[322358459,1712963461145,-157.041307,0.00039298,44]
[322358460,1712963461155,-1252.2,0.000393,7]
[322358461,1712963461164,-151.0,0.000393,14]
[322358462,1712963461174,-206.593788,0.000393,14]
[322358463,1712963461183,-206.593788,0.000393,14]
[322358464,1712963461192,-151.0,0.000393,14]
[322358465,1712963461201,-219.081493,0.000393,14]
[322358466,1712963461210,-219.081493,0.000393,14]
[322358467,1712963461220,-296.0,0.000393,14]
[322358468,1712963461230,-296.0,0.000393,14]
[322358469,1712963461239,-157.041307,0.00039398,40]
[322358470,1712963461248,-152.17,0.00039452,2]
[322358471,1712963461258,-173.041307,0.00039498,45]
[322358472,1712963461267,-158846.63357889,0.000395,30]
[322358473,1712963461277,-151.0,0.000395,14]
[322358474,1712963461286,-162.686338,0.000395,14]
[322358475,1712963461296,-176.602118,0.000395,14]
[322358476,1712963461306,-176.602118,0.000395,14]
[322358477,1712963461317,-274.54405,0.000395,14]
[322358478,1712963461327,-274.54405,0.000395,14]
[322358479,1712963461337,-526.004026,0.000395,14]
[322358480,1712963461347,-376.099086,0.000395,14]
[322358481,1712963461356,-526.004026,0.000395,14]
[322358482,1712963461366,-376.099086,0.000395,14]
[322358483,1712963461375,-151.0,0.000395,14]
[322358484,1712963461384,-185.889288,0.000395,14]
[322358485,1712963461394,-319.500085,0.000395,14]
[322358486,1712963461404,-192.547911,0.000395,14]
[322358487,1712963461414,-517.853636,0.000395,14]
[322358488,1712963461423,-319.500085,0.000395,14]
[322358489,1712963461433,-192.547911,0.000395,14]
[322358490,1712963461442,-517.853636,0.000395,14]
[322358491,1712963461455,-190.640992,0.000395,14]
[322358492,1712963461464,-190.640992,0.000395,14]
[322358493,1712963461473,-151.0,0.000395,14]
[322358494,1712963461483,-1298.853784,0.000395,14]
[322358495,1712963461493,-151.0,0.000395,14]
[322358496,1712963461502,-1298.853784,0.000395,14]
[322358497,1712963461512,-151.0,0.000395,14]
[322358498,1712963461523,-151.0,0.000395,14]
[322358499,1712963461533,-565.901977,0.000395,14]
[322358500,1712963461543,-565.901977,0.000395,14]
[322358501,1712963461552,-155.402365,0.000395,14]
[322358502,1712963461562,-155.402365,0.000395,14]
[322358503,1712963461571,-329.90616,0.000395,14]
[322358504,1712963461581,-329.90616,0.000395,14]
[322358505,1712963461591,-238.106018,0.000395,14]
[322358506,1712963461601,-238.106018,0.000395,14]
[322358507,1712963461610,-247.217768,0.000395,14]
[322358508,1712963461621,-247.217768,0.000395,14]
[322358509,1712963461631,-151.0,0.000395,14]
[322358510,1712963461641,-541.515562,0.000395,14]
[322358511,1712963461650,-541.515562,0.000395,14]
[322358512,1712963461660,-151.0,0.000395,14]
[322358513,1712963461670,-178.597184,0.000395,14]
[322358514,1712963461679,-178.597184,0.000395,14]
[322358515,1712963461688,-191.656419,0.000395,14]
[322358516,1712963461698,-191.656419,0.000395,14]
[322358517,1712963461707,-184.428358,0.000395,14]
[322358518,1712963461717,-184.428358,0.000395,14]
[322358519,1712963461726,-1598.319678,0.000395,14]
[322358520,1712963461735,-151.0,0.000395,14]
[322358521,1712963461744,-1598.319678,0.000395,14]
[322358522,1712963461753,-187.907052,0.000395,14]
[322358523,1712963461762,-151.0,0.000395,14]
[322358524,1712963461771,-187.907052,0.000395,14]
[322358525,1712963461783,-438.40187,0.000395,14]
[322358526,1712963461792,-1630.380764,0.000395,14]
[322358527,1712963461801,-151.0,0.000395,14]
[322358528,1712963461811,-438.40187,0.000395,14]
[322358529,1712963461821,-1630.380764,0.000395,14]
[322358530,1712963461830,-151.0,0.000395,14]
[322358531,1712963461839,-157.041307,0.00039698,41]
[322358532,1712963461849,-173.041307,0.00039798,39]
[322358533,1712963461860,-151.0,0.00039798,14]
[322358534,1712963461869,-151.0,0.00039798,7]
[322358535,1712963461879,-184.880884,0.00039798,14]
[322358536,1712963461888,-184.880884,0.00039798,14]
[322358537,1712963461899,-151.0,0.00039798,14]
[322358538,1712963461909,-151.0,0.00039798,14]
[322358539,1712963461919,-786.06,0.00039862,2]
[322358540,1712963461928,-157.42754868,0.0003987,7]
[322358541,1712963461939,-151.0,0.000399,14]
[322358542,1712963461949,-151.0,0.000399,14]
[322358543,1712963461959,-3266.9022677,0.000399,48]
[322358544,1712963461968,-31843.0970173,0.0004,2]
[322358545,1712963461978,-205.83699865,0.0004,30]
[322358546,1712963461989,-82901.0,0.0004,10]
[322358547,1712963461999,-400.162239,0.0004,2]
[322358548,1712963462008,-544.05162533,0.0004,120]
[322358549,1712963462018,-219.29449371,0.0004,30]
[322358550,1712963462027,-266.37502491,0.0004,30]
[322358551,1712963462036,-210.37183016,0.0004,120]
[322358552,1712963462046,-2851.76652198,0.0004,5]
[322358553,1712963462055,-27119.35776358,0.0004,4]
[322358554,1712963462065,-193.0576741,0.0004,2]
[322358555,1712963462074,-2457.71931294,0.0004,2]
[322358556,1712963462085,-208.82472284,0.0004,30]
[322358557,1712963462094,-369.56829489,0.0004,2]
[322358558,1712963462104,-22126.04814087,0.0004,4]
[322358559,1712963462115,-300.0,0.0004,7]
[322358560,1712963462126,-151.0,0.0004,14]
[322358561,1712963462135,-151.0,0.0004,14]
[322358562,1712963462145,-151.0,0.0004,7]
[322358563,1712963462156,-151.0,0.0004,7]
[322358564,1712963462165,-151.0,0.0004,14]
[322358565,1712963462174,-151.0,0.0004,14]
[322358566,1712963462184,-151.0,0.0004,14]
[322358567,1712963462194,-161.730415,0.0004,14]
[322358568,1712963462203,-161.730415,0.0004,14]
[322358569,1712963462213,-2221.84004278,0.0004,4]
[322358570,1712963462223,-282.19765822,0.00040011,30]
[322358571,1712963462371,-715.54,0.000401,7]
[322358572,1712963462391,-168.0,0.0004016,31]
[322358573,1712963462402,-173.041307,0.00040198,45]
[322358574,1712963462411,-157.72,0.00040201,2]
[322358575,1712963462422,-161.64,0.00040201,2]
[322358576,1712963462431,-416.24,0.00040201,2]
[322358577,1712963462441,-521.0,0.00040219,7]
[322358578,1712963462454,-157.041307,0.00040298,45]
[322358579,1712963462463,-157.041307,0.00040398,46]
[322358580,1712963462473,-167.58516634,0.00040405,30]
[322358581,1712963462484,-162.28190367,0.00040419,30]
[322358582,1712963462494,-173.041307,0.00040498,46]
[322358583,1712963462504,-365.93999645,0.00040512,30]
[322358584,1712963462514,-365.93999645,0.00040592,30]
[322358585,1712963462526,-167.58516634,0.00040615,30]
[322358586,1712963462535,-282.19765822,0.00040617,30]
[322358587,1712963462544,-214.84179786,0.00040643,30]
[322358588,1712963462553,-154.75141428,0.00040685,30]
[322358589,1712963462562,-157.041307,0.00040698,42]
[322358590,1712963462572,-1260.66987456,0.000407,5]
[322358591,1712963462581,-154588.4148543,0.000407,5]
[322358592,1712963462590,-151.0,0.000407,14]
[322358593,1712963462599,-206.593788,0.000407,14]
[322358594,1712963462608,-206.593788,0.000407,14]
[322358595,1712963462617,-151.0,0.000407,14]
[322358596,1712963462626,-219.081493,0.000407,14]
[322358597,1712963462635,-219.081493,0.000407,14]
[322358598,1712963462644,-296.0,0.000407,14]
[322358599,1712963462656,-296.0,0.000407,14]
[322358600,1712963462666,-151.0,0.000407,14]
[322358601,1712963462675,-151.0,0.000407,14]
[322358602,1712963462684,-151.0,0.000407,14]
[322358603,1712963462693,-151.0,0.000407,14]
[322358604,1712963462702,-330.932232,0.000407,14]
[322358605,1712963462711,-330.932232,0.000407,14]
[322358606,1712963462720,-153.988258,0.000407,14]
[322358607,1712963462729,-153.988258,0.000407,14]
[322358608,1712963462740,-151.0,0.000407,7]
[322358609,1712963462749,-4116.105926,0.000407,14]
[322358610,1712963462759,-209.845964,0.000407,14]
[322358611,1712963462769,-4116.105926,0.000407,14]
[322358612,1712963462779,-209.845964,0.000407,14]
[322358613,1712963462789,-260.469364,0.000407,14]
[322358614,1712963462798,-151.0,0.000407,14]
[322358615,1712963462809,-260.469364,0.000407,14]
[322358616,1712963462818,-202.531784,0.000407,2]
[322358617,1712963462827,-709.622586,0.000407,14]
[322358618,1712963462837,-202.531784,0.000407,2]
[322358619,1712963462846,-709.622586,0.000407,14]
[322358620,1712963462855,-151.0,0.000407,14]
[322358621,1712963462863,-268.058529,0.000407,14]
[322358622,1712963462872,-268.058529,0.000407,14]
[322358623,1712963462882,-214.84179786,0.00040709,30]
[322358624,1712963462891,-602.22,0.00040767,15]
[322358625,1712963462901,-173.041307,0.00040798,40]
[322358626,1712963462910,-157.041306,0.00040848,47]
[322358627,1712963462921,-282.19765822,0.00040869,30]
[322358628,1712963462931,-214.84179786,0.00040994,30]
[322358629,1712963462952,-725.1431069,0.00041,2]
[322358630,1712963462963,-1200.0,0.00041,3]
[322358631,1712963462973,-182.16145599,0.00041038,30]
[322358632,1712963462983,-365.93999645,0.00041083,30]
[322358633,1712963462993,-1000.0,0.00041095,2]
[322358634,1712963463003,-157.0,0.00041096,2]
[322358635,1712963463013,-3412.0,0.000411,2]
[322358636,1712963463023,-152.0,0.00041143,4]
[322358637,1712963463034,-173.041307,0.00041198,46]
[322358638,1712963463044,-173.041308,0.00041298,45]
[322358639,1712963463054,-152.47619676,0.00041319,30]
[322358640,1712963463065,-365.93999645,0.0004134,30]
[322358641,1712963463075,-158.14981821,0.0004137,30]
[322358642,1712963463084,-314.041308,0.00041398,46]
[322358643,1712963463093,-156.33022819,0.00041402,30]
[322358644,1712963463103,-153.19445823,0.00041413,30]
[322358645,1712963463113,-521.0,0.00041452,7]
[322358646,1712963463122,-314.041308,0.00041498,47]
[322358647,1712963463132,-150.0,0.00041589,120]
[322358648,1712963463141,-1041.72,0.00041615,2]
[322358649,1712963463152,-254.73,0.00041615,2]
[322358650,1712963463161,-181.77,0.00041615,2]
[322358651,1712963463171,-473.8,0.00041615,2]
[322358652,1712963463181,-150.0,0.00041615,2]
[322358653,1712963463191,-150.0,0.00041615,2]
[322358654,1712963463201,-150.0,0.00041615,2]
[322358655,1712963463210,-150.0,0.00041615,2]
[322358656,1712963463219,-2077.03510816,0.00041697,2]
[322358657,1712963463229,-314.041308,0.00041698,43]
[322358658,1712963463238,-1868.94,0.000417,4]
[322358659,1712963463248,-1868.94,0.000417,4]
[322358660,1712963463258,-1868.94,0.000417,4]
[322358661,1712963463268,-1868.94,0.000417,4]
[322358662,1712963463278,-1868.94,0.000417,4]
[322358663,1712963463287,-1868.94,0.000417,4]
[322358664,1712963463297,-1868.94,0.000417,4]
[322358665,1712963463307,-1868.94,0.000417,4]
[322358666,1712963463316,-1868.94,0.000417,4]
[322358667,1712963463325,-1868.94,0.000417,4]
[322358668,1712963463337,-1868.94,0.000417,4]
[322358669,1712963463346,-1868.94,0.000417,4]
[322358670,1712963463357,-1868.94,0.000417,4]
[322358671,1712963463366,-1868.94,0.000417,4]
[322358672,1712963463377,-1868.94,0.000417,4]
[322358673,1712963463386,-1868.94,0.000417,4]
[322358674,1712963463397,-1868.94,0.000417,4]
[322358675,1712963463409,-1868.94,0.000417,4]
[322358676,1712963463419,-1868.94,0.000417,4]
[322358677,1712963463429,-1868.94,0.000417,4]
[322358678,1712963463438,-154.33,0.000417,4]
[322358679,1712963463449,-154.33,0.000417,4]
[322358680,1712963463461,-154.33,0.000417,4]
[322358681,1712963463472,-154.33,0.000417,4]
[322358682,1712963463482,-154.33,0.000417,4]
[322358683,1712963463494,-154.33,0.000417,4]
[322358684,1712963463504,-154.33,0.000417,4]
[322358685,1712963463514,-154.33,0.000417,4]
[322358686,1712963463524,-314.041308,0.00041798,41]
[322358687,1712963463536,-150.0,0.00041813,120]
[322358688,1712963463545,-157.42754868,0.00041838,30]
[322358689,1712963463555,-150.0,0.00041859,120]
[322358690,1712963463565,-154.340065,0.00041875,30]
[322358691,1712963463575,-282.19765822,0.00041879,30]
[322358692,1712963463584,-418.16,0.0004189,2]
[322358693,1712963463593,-162.36,0.0004189,2]
[322358694,1712963463602,-418.16,0.0004189,2]
[322358695,1712963463611,-162.36,0.0004189,2]
[322358696,1712963463620,-497.70056021,0.00042,120]
[322358697,1712963463629,-2951.32,0.00042,2]
[322358698,1712963463638,-282.19765822,0.0004209,30]
[322358699,1712963463647,-154.75141428,0.00042112,30]
[322358700,1712963463658,-786.06,0.00042126,2]
[322358701,1712963463667,-172.0,0.0004217,35]
[322358702,1712963463676,-214.84179786,0.0004219,30]
[322358703,1712963463685,-314.041308,0.00042298,50]
[322358704,1712963463695,-153.76020685,0.00042331,30]
[322358705,1712963463704,-167.58516634,0.00042363,30]
[322358706,1712963463713,-314.041308,0.00042398,47]
[322358707,1712963463722,-154.75141428,0.00042424,30]
[322358708,1712963463732,-1033.57025315,0.00042465,2]
[322358709,1712963463741,-348.8,0.0004249,2]
[322358710,1712963463751,-314.041308,0.00042498,48]
[322358711,1712963463761,-167.58516634,0.00042553,30]
[322358712,1712963463771,-152.47619676,0.00042559,30]
[322358713,1712963463780,-521.0,0.00042684,7]
[322358714,1712963463789,-314.041308,0.00042698,44]
[322358715,1712963463799,-152.17,0.0004274,2]
[322358716,1712963463808,-157.06888665,0.00042749,30]
[322358717,1712963463817,-10000.0,0.0004279,30]
[322358718,1712963463828,-314.041308,0.00042798,42]
[322358719,1712963463838,-151.0,0.0004282,2]
[322358720,1712963463848,-777.42750141,0.0004289,10]
[322358721,1712963463858,-158.0,0.000429,2]
[322358722,1712963463869,-150.0,0.000429,18]
[322358723,1712963463879,-1150.0,0.000429,19]
[322358724,1712963463889,-16267.19686496,0.00043,5]
[322358725,1712963463898,-1250.0,0.00043,3]
[322358726,1712963463908,-156.69386508,0.00043028,3]
[322358727,1712963463917,-907.52,0.00043037,2]
[322358728,1712963463927,-412.01,0.00043037,2]
[322358729,1712963463936,-907.52,0.00043037,2]
[322358730,1712963463945,-412.01,0.00043037,2]
[322358731,1712963463954,-907.52,0.00043037,2]
[322358732,1712963463963,-412.01,0.00043037,2]
[322358733,1712963463972,-907.52,0.00043037,2]
[322358734,1712963463981,-214.84179786,0.00043061,30]
[322358735,1712963463990,-282.19765822,0.00043062,30]
[322358736,1712963463999,-154.75141428,0.00043116,30]
[322358737,1712963464008,-365.93999645,0.00043141,30]
[322358738,1712963464017,-162.28190367,0.00043158,30]
[322358739,1712963464027,-162.36,0.00043174,2]
[322358740,1712963464036,-349.62,0.00043174,2]
[322358741,1712963464045,-150.0,0.00043174,2]
[322358742,1712963464055,-418.16,0.00043174,2]
[322358743,1712963464064,-150.0,0.00043174,2]
[322358744,1712963464074,-150.0,0.00043174,2]
[322358745,1712963464083,-150.0,0.00043174,2]
[322358746,1712963464092,-418.16,0.00043174,2]
[322358747,1712963464101,-150.0,0.00043174,2]
[322358748,1712963464111,-150.0,0.00043174,2]
[322358749,1712963464120,-150.0,0.00043174,2]
[322358750,1712963464129,-150.0,0.00043174,2]
[322358751,1712963464139,-349.62,0.00043174,2]
[322358752,1712963464148,-162.36,0.00043174,2]
[322358753,1712963464160,-162.36,0.00043174,2]
[322358754,1712963464170,-314.041308,0.00043198,48]
[322358755,1712963464179,-154.25370078,0.00043264,30]
[322358756,1712963464189,-166.80797735,0.00043274,30]
[322358757,1712963464198,-418.16,0.00043287,2]
[322358758,1712963464207,-150.0,0.00043287,2]
[322358759,1712963464217,-150.0,0.00043287,2]
[322358760,1712963464226,-162.36,0.00043287,2]
[322358761,1712963464235,-214.4,0.00043287,2]
[322358762,1712963464244,-300.0,0.00043287,2]
[322358763,1712963464254,-150.0,0.00043287,2]
[322358764,1712963464262,-1036.2,0.00043287,2]
[322358765,1712963464272,-349.62,0.00043287,2]
[322358766,1712963464281,-314.041308,0.00043298,50]
[322358767,1712963464290,-348.74550605,0.00043316,30]
[322358768,1712963464299,-154.340065,0.00043323,30]
[322358769,1712963464308,-348.74550605,0.00043384,30]
[322358770,1712963464317,-314.041308,0.00043398,47]
[322358771,1712963464327,-365.93999645,0.00043455,30]
[322358772,1712963464336,-153.90252395,0.00043475,30]
[322358773,1712963464345,-314.041308,0.00043498,49]
[322358774,1712963464354,-602.22,0.00043507,15]
[322358775,1712963464363,-302.0,0.0004354,4]
[322358776,1712963464372,-300.8,0.00043561,2]
[322358777,1712963464382,-154.75141428,0.00043654,30]
[322358778,1712963464391,-154.340065,0.00043665,30]
[322358779,1712963464403,-282.19765822,0.00043677,30]
[322358780,1712963464411,-314.041308,0.00043698,45]
[322358781,1712963464420,-152.47619676,0.00043713,30]
[322358782,1712963464429,-167.58516634,0.00043764,30]
[322358783,1712963464439,-314.041308,0.00043798,43]
[322358784,1712963464452,-214.84179786,0.0004381,30]
[322358785,1712963464462,-162.97508016,0.00043817,30]
[322358786,1712963464471,-5887.48,0.00043836,2]
[322358787,1712963464479,-341.55,0.00043836,2]
[322358788,1712963464490,-541.515562,0.00043836,14]
[322358789,1712963464499,-541.515562,0.00043836,14]
[322358790,1712963464509,-178.597184,0.00043836,14]
[322358791,1712963464518,-151.0,0.00043836,14]
[322358792,1712963464529,-178.597184,0.00043836,14]
[322358793,1712963464538,-191.656419,0.00043836,14]
[322358794,1712963464546,-191.656419,0.00043836,14]
[322358795,1712963464556,-184.428358,0.00043836,14]
[322358796,1712963464565,-184.428358,0.00043836,14]
[322358797,1712963464574,-1598.319678,0.00043836,14]
[322358798,1712963464583,-151.0,0.00043836,14]
[322358799,1712963464592,-1598.319678,0.00043836,14]
[322358800,1712963464601,-187.907052,0.00043836,14]
[322358801,1712963464610,-151.0,0.00043836,14]
[322358802,1712963464619,-187.907052,0.00043836,14]
[322358803,1712963464627,-438.40187,0.00043836,14]
[322358804,1712963464637,-1630.380764,0.00043836,14]
[322358805,1712963464646,-151.0,0.00043836,14]
[322358806,1712963464657,-438.40187,0.00043836,14]
[322358807,1712963464666,-1630.380764,0.00043836,14]
[322358808,1712963464675,-151.223449,0.00043836,14]
[322358809,1712963464683,-150.0,0.000439,20]
[322358810,1712963464693,-521.0,0.00043917,7]
[322358811,1712963464702,-150.0,0.00043996,2]
[322358812,1712963464711,-150.0,0.00043996,2]
[322358813,1712963464721,-150.0,0.00043996,2]
[322358814,1712963464730,-150.0,0.00043996,2]
[322358815,1712963464740,-150.0,0.00043996,2]
[322358816,1712963464749,-150.0,0.00043996,2]
[322358817,1712963464758,-907.52,0.00043996,2]
[322358818,1712963464768,-150.0,0.00043996,2]
[322358819,1712963464777,-150.0,0.00043996,2]
[322358820,1712963464786,-907.52,0.00043996,2]
[322358821,1712963464795,-418.16,0.00043996,2]
[322358822,1712963464804,-150.0,0.00043996,2]
[322358823,1712963464813,-150.0,0.00043996,2]
[322358824,1712963464822,-150.0,0.00043996,2]
[322358825,1712963464831,-150.0,0.00043996,2]
[322358826,1712963464840,-907.52,0.00043996,2]
[322358827,1712963464990,-150.0,0.00043996,2]
[322358828,1712963464999,-418.16,0.00043996,2]
[322358829,1712963465009,-150.0,0.00043996,2]
[322358830,1712963465018,-150.0,0.00043996,2]
[322358831,1712963465028,-150.0,0.00043996,2]
[322358832,1712963465038,-907.52,0.00043996,2]
[322358833,1712963465046,-150.0,0.00043996,2]
[322358834,1712963465056,-418.16,0.00043996,2]
[322358835,1712963465066,-150.0,0.00043996,2]
[322358836,1712963465076,-150.0,0.00043996,2]
[322358837,1712963465085,-150.0,0.00043996,2]
[322358838,1712963465096,-418.16,0.00043996,2]
[322358839,1712963465105,-150.0,0.00043996,2]
[322358840,1712963465115,-150.0,0.00043996,2]
[322358841,1712963465125,-150.0,0.00043996,2]
[322358842,1712963465134,-418.16,0.00043996,2]
[322358843,1712963465144,-150.0,0.00043996,2]
[322358844,1712963465153,-150.0,0.00043996,2]
[322358845,1712963465164,-150.0,0.00043996,2]
[322358846,1712963465174,-907.52,0.00043996,2]
[322358847,1712963465183,-150.0,0.00043996,2]
[322358848,1712963465193,-150.0,0.00043996,2]
[322358849,1712963465203,-907.52,0.00043996,2]
[322358850,1712963465212,-150.0,0.00043996,2]
[322358851,1712963465222,-412.01,0.00043996,2]
[322358852,1712963465231,-418.16,0.00043996,2]
[322358853,1712963465242,-150.0,0.00043996,2]
[322358854,1712963465251,-1237.97,0.00043996,2]
[322358855,1712963465261,-418.16,0.00043996,2]